bitfinex-derivatives/quotes_SOLF0:USTF0_20260105
["timestamp","ask_amount","ask_price","bid_price","bid_amount"]
[1767654157661,0.31338884,138.66,138.59,1.46619686]
[1767654157959,0.05475119,138.64,138.59,1.46619686]
[1767654158460,0.05475119,138.64,138.6,6.4935]
[1767654159565,0.05475119,138.64,138.58,1.46619686]
[1767654159566,0.05475119,138.64,138.59,6.4942]
[1767654159758,0.05475119,138.64,138.58,1.46619686]
[1767654160263,0.05475119,138.64,138.57,1.46619686]
[1767654160662,6.80468884,138.66,138.58,6.4947]
[1767654160963,0.05127054,138.62,138.58,6.4947]
[1767654161163,0.05127054,138.62,138.57,1.46619686]
[1767654161365,0.31338884,138.66,138.57,1.46619686]
[1767654162260,0.31338884,138.66,138.59,1.46619686]
[1767654162473,0.31338884,138.66,138.56,101.0402]
[1767654162660,0.04562826,138.63,138.59,1.46619686]
[1767654163568,0.04562826,138.63,138.6,6.4936]
[1767654172162,0.04562826,138.63,138.6,6.5394256]
[1767654172569,0.04562826,138.63,138.6,0.0458256]
[1767654180374,0.04562826,138.63,138.6,6.5395256]
[1767654181074,0.31338884,138.66,138.6,6.5395256]
[1767654182175,2.63290818,138.73,138.6,1.4858256]
[1767654182362,0.33728152,138.72,138.6,0.0458256]
[1767654182570,0.33728152,138.72,138.59,210.14382666]
[1767654182871,0.33728152,138.72,138.65,0.04736607]
[1767654183573,2.29562666,138.73,138.65,0.04736607]
[1767654183574,0.33728152,138.7,138.65,0.04736607]
[1767654195386,0.05488092,138.69,138.65,0.04736607]
[1767654197781,0.39216244,138.69,138.65,0.04736607]
[1767654199384,0.05488092,138.69,138.65,0.04736607]
[1767654201385,0.39216244,138.69,138.65,0.04736607]
[1767654205183,0.33728152,138.68,138.62,6.4924]
[1767654205382,0.33728152,138.68,138.6,13.38668889]
[1767654205589,2.63290818,138.68,138.58,13.38668889]
[1767654205787,0.33728152,138.67,138.58,13.38668889]
[1767654206497,0.33728152,138.67,138.6,6.4937]
[1767654206796,0.04876213,138.64,138.6,6.4937]
[1767654207193,0.04876213,138.64,138.59,19.88068889]
[1767654208890,0.38604365,138.64,138.57,19.88158889]
[1767654209795,0.38604365,138.64,138.57,6.4949]
[1767654209998,0.33728152,138.63,138.56,13.38668889]
[1767654210191,0.33728152,138.63,138.55,19.88258889]
[1767654210693,0.04694811,138.6,138.55,13.38668889]
[1767654210888,0.33728152,138.63,138.56,13.38668889]
[1767654211090,0.33728152,138.63,138.55,13.38668889]
[1767654211393,0.33728152,138.63,138.57,6.4951]
[1767654211703,0.33728152,138.63,138.58,6.4946]
[1767654211994,0.32691383,138.66,138.57,15.68231555]
[1767654212190,0.32691383,138.66,138.58,13.38668889]
[1767654213594,0.32691383,138.66,138.6,6.4936]
[1767654217907,0.32691383,138.66,138.62,0.04707303]
[1767654218306,0.0519417,138.64,138.62,0.04707303]
[1767654225120,0.32691383,138.68,138.62,0.04707303]
[1767654225520,0.32691383,138.7,138.62,0.04707303]
[1767654225822,0.32691383,138.7,138.62,13.43376192]
[1767654226523,0.05390104,138.67,138.62,13.43376192]
[1767654226725,0.05390104,138.67,138.62,0.04707303]
[1767654227726,0.05390104,138.67,138.62,6.53977303]
[1767654228225,0.05390104,138.67,138.62,19.92646192]
[1767654230828,0.05390104,138.67,138.62,6.53977303]
[1767654231329,0.05390104,138.67,138.62,19.92646192]
[1767654231531,0.05390104,138.67,138.62,6.53977303]
[1767654242836,0.31151654,138.66,138.6,13.38668889]
[1767654243038,0.31151654,138.65,138.59,13.38668889]
[1767654246438,0.31151654,138.65,138.61,0.04869493]
[1767654248436,0.31151654,138.65,138.57,21.35042666]
[1767654248629,0.36356383,138.64,138.57,14.85542666]
[1767654248830,0.31151654,138.63,138.56,13.38668889]
[1767654249843,0.04943125,138.61,138.56,13.38668889]
[1767654250639,0.04943125,138.61,138.56,19.88228889]
[1767654252540,0.04943125,138.61,138.57,6.4952]
[1767654253337,0.04943125,138.61,138.55,100.05542666]
[1767654253640,0.31151654,138.63,138.58,6.54162025]
[1767654253829,6.4913,138.66,138.58,6.54162025]
[1767654253830,0.31151654,138.65,138.58,6.54162025]
[1767654254443,0.31151654,138.65,138.59,6.4942]
[1767654254642,0.31151654,138.65,138.58,0.04692025]
[1767654255542,0.31151654,138.65,138.6,6.4937]
[1767654256238,0.31151654,138.65,138.61,0.05437485]
[1767654270752,1.78025431,138.64,138.61,0.05437485]
[1767654271450,0.31151654,138.64,138.61,0.05437485]
[1767654274451,0.31151654,138.64,138.57,13.38668889]
[1767654274649,0.31197975,138.62,138.53,110.57880113]
[1767654275651,0.31197975,138.62,138.55,6.4959]
[1767654275846,0.05059257,138.59,138.55,6.4959]
[1767654277356,0.05059257,138.59,138.56,6.4956]
[1767654278763,1.78071752,138.62,138.56,6.4956]
[1767654278962,1.78071752,138.62,138.56,6.54319764]
[1767654281462,0.31197975,138.64,138.56,0.04759764]
[1767654281664,1.78071752,138.64,138.56,13.52882195]
[1767654282361,0.31197975,138.66,138.57,114.51772431]
[1767654282661,0.31197975,138.66,138.57,115.98646208]
[1767654282662,1.78071752,138.66,138.57,115.98646208]
[1767654283555,1.78071752,138.66,138.6,6.4936]
[1767654284162,1.78071752,138.66,138.62,0.04810151]
[1767654288364,1.46873777,138.64,138.59,13.48122431]
[1767654288659,1.78071752,138.62,138.57,19.97602431]
[1767654289167,1.78071752,138.62,138.57,13.48122431]
[1767654289460,1.78071752,138.62,138.56,13.48122431]
[1767654289666,0.05474118,138.61,138.56,13.48122431]
[1767654289857,0.36672093,138.61,138.56,13.48122431]
[1767654290567,1.46873777,138.6,138.56,13.48122431]
[1767654291166,1.78071752,138.6,138.56,13.48122431]
[1767654291677,0.31197975,138.59,138.55,13.48122431]
[1767654292661,1.46873777,138.58,138.54,13.48122431]
[1767654293465,0.04852126,138.57,138.54,13.48122431]
[1767654294971,0.04852126,138.57,138.53,13.48122431]
[1767654297170,0.31197975,138.59,138.53,19.97812431]
[1767654297372,0.31197975,138.59,138.54,0.04597163]
[1767654300675,2.61709419,138.61,138.54,0.04597163]
[1767654300976,0.31893693,138.61,138.54,0.04597163]
[1767654301277,0.31893693,138.61,138.53,13.48122431]
[1767654301475,0.31893693,138.61,138.56,0.04564869]
[1767654303075,0.31609439,138.6,138.56,0.04564869]
[1767654304172,0.31609439,138.6,138.53,6.4968]
[1767654304374,0.31609439,138.58,138.53,6.4968]
[1767654305781,0.31609439,138.58,138.52,13.48122431]
[1767654306778,0.31609439,138.58,138.52,19.97872431]
[1767654306979,0.31609439,138.58,138.54,0.05475095]
[1767654313678,2.35234379,138.59,138.5,19.97922431]
[1767654313679,0.31609439,138.56,138.5,19.97922431]
[1767654313876,0.31609439,138.56,138.5,6.498]
[1767654314881,0.05140022,138.54,138.52,0.04994546]
[1767654315771,0.31609439,138.56,138.52,6.54744546]
[1767654317083,0.0546872,138.55,138.52,6.54744546]
[1767654317683,0.0546872,138.55,138.52,0.04994546]
[1767654318481,0.0546872,138.55,138.5,6.4981]
[1767654318482,0.37078159,138.55,138.5,6.4981]
[1767654319282,0.37078159,138.55,138.49,153.00705226]
[1767654321488,0.31609439,138.54,138.49,153.00705226]
[1767654321790,0.31609439,138.54,138.48,6.4992]
[1767654323189,0.31609439,138.54,138.46,6.5003]
[1767654323889,0.05396427,138.51,138.46,6.5003]
[1767654325794,0.05396427,138.51,138.47,6.4997]
[1767654328199,0.05396427,138.51,138.46,101.1166]
[1767654328399,0.31609439,138.54,138.46,101.1166]
[1767654329298,0.31609439,138.54,138.5,6.4984]
[1767654329797,0.04631816,138.51,138.5,6.4984]
[1767654331201,0.31609439,138.54,138.51,6.498]
[1767654332700,0.31609439,138.54,138.51,6.54777861]
[1767654344208,0.31609439,138.54,138.49,6.4986]
[1767654344402,0.36753496,138.54,138.49,6.4986]
[1767654347205,0.05144057,138.54,138.5,6.4981]
[1767654347403,0.05144057,138.54,138.48,101.1026]
[1767654349205,0.05144057,138.54,138.48,114.58382431]
[1767654349711,0.05144057,138.54,138.51,6.4977]
[1767654350311,0.32185058,138.61,138.51,101.0795]
[1767654350513,0.32185058,138.6,138.51,114.60883079]
[1767654350815,0.32185058,138.6,138.55,6.4961]
[1767654351113,85.60185058,138.61,138.55,6.4961]
[1767654351515,85.60185058,138.61,138.57,0.05067586]
[1767654354306,85.28,138.61,138.57,0.05067586]
[1767654354508,2.29815726,138.63,138.57,0.05067586]
[1767654354509,2.60571172,138.63,138.57,0.05067586]
[1767654354705,0.30755446,138.63,138.57,0.05067586]
[1767654355010,0.30755446,138.63,138.58,6.4946]
[1767654355212,85.58755446,138.64,138.57,0.05067586]
[1767654355407,85.28,138.64,138.57,0.05067586]
[1767654355708,0.30755446,138.63,138.57,0.05067586]
[1767654356516,0.30755446,138.63,138.58,6.4947]
[1767654357219,0.30755446,138.63,138.57,6.54567586]
[1767654358517,1.77756769,138.63,138.57,6.54567586]
[1767654359914,85.28,138.64,138.57,0.05067586]
[1767654360316,0.30755446,138.66,138.57,101.08447586]
[1767654360317,1.47001323,138.66,138.57,101.08447586]
[1767654360517,1.77756769,138.68,138.62,6.4928]
[1767654361516,1.77756769,138.68,138.64,0.05141353]
[1767654364624,1.77756769,138.68,138.64,6.54331353]
[1767654365622,1.77756769,138.68,138.65,6.4914]
[1767654365926,1.47001323,138.69,138.64,0.05141353]
[1767654366618,1.47001323,138.69,138.66,6.491]
[1767654368425,33.53433311,138.72,138.64,101.03261353]
[1767654368926,33.53433311,138.72,138.67,6.4901]
[1767654369725,33.53433311,138.72,138.68,0.0531528]
[1767654372927,33.22845401,138.72,138.68,6.5430528]
[1767654373130,0.0553074,138.71,138.68,6.5430528]
[1767654375537,1.47001323,138.7,138.66,6.4907]
[1767654377143,1.47001323,138.7,138.67,0.05169142]
[1767654377438,0.0553074,138.71,138.67,0.05169142]
[1767654377643,0.0553074,138.71,138.67,6.54209142]
[1767654385956,0.0553074,138.71,138.68,6.4899]
[1767654391855,0.0553074,138.71,138.67,0.05169142]
[1767654392059,1.78484605,138.68,138.58,115.48571323]
[1767654392254,1.78484605,138.68,138.58,200.68571323]
[1767654392459,1.78484605,138.68,138.62,6.4924]
[1767654392758,0.31483282,138.68,138.62,6.4924]
[1767654392954,1.47001323,138.66,138.58,186.2265]
[1767654393361,1.51915804,138.66,138.58,186.2265]
[1767654394061,1.51915804,138.66,138.57,101.0338]
[1767654394261,1.83399086,138.66,138.57,101.0338]
[1767654394463,1.78484605,138.66,138.57,101.0338]
[1767654394762,0.05075421,138.63,138.57,101.0338]
[1767654395655,0.05075421,138.63,138.6,6.4937]
[1767654399657,1.78484605,138.66,138.61,6.4932]
[1767654399861,1.47001323,138.66,138.59,101.022]
[1767654400764,1.47001323,138.66,138.62,6.4927]
[1767654400953,0.04877464,138.64,138.62,6.4927]
[1767654401858,0.04877464,138.64,138.6,6.4933]
[1767654406168,0.04877464,138.64,138.61,6.4933]
[1767654417880,0.04877464,138.64,138.6,6.4935]
[1767654428391,0.04877464,138.64,138.61,0.05364806]
[1767654437500,0.04877464,138.64,138.61,6.54674806]
[1767654437887,0.04877464,138.64,138.61,0.05364806]
[1767654438401,0.32183694,138.66,138.62,6.4928]
[1767654438992,0.33174636,138.68,138.63,6.4924]
[1767654439890,0.33174636,138.68,138.64,0.05408767]
[1767654443302,0.04560069,138.67,138.64,0.05408767]
[1767654470127,0.37923176,138.67,138.62,6.4927]
[1767654470724,6.87013176,138.67,138.61,13.48122431]
[1767654470926,0.33363107,138.66,138.6,13.48122431]
[1767654471118,0.33363107,138.65,138.58,13.48122431]
[1767654471627,0.33363107,138.65,138.57,13.48122431]
[1767654471825,0.05540943,138.63,138.57,13.48122431]
[1767654472519,0.05540943,138.63,138.59,0.05360727]
[1767654478124,6.54780943,138.63,138.59,0.05360727]
[1767654478326,6.86700701,138.63,138.59,0.05360727]
[1767654478621,0.31919758,138.61,138.56,13.48122431]
[1767654478826,0.31919758,138.61,138.53,85.22]
[1767654478827,0.31919758,138.61,138.55,13.48122431]
[1767654479023,0.31919758,138.61,138.54,13.48122431]
[1767654479335,0.31919758,138.61,138.53,13.48122431]
[1767654479928,0.05435355,138.58,138.53,13.48122431]
[1767654480223,0.05435355,138.58,138.51,13.48122431]
[1767654481729,0.05435355,138.58,138.52,6.4974]
[1767654482035,0.3784302,138.58,138.52,6.4974]
[1767654484043,0.05435355,138.58,138.52,1.47070868]
[1767654486647,0.05435355,138.58,138.54,6.4965]
[1767654491755,0.05435355,138.58,138.52,1.47070868]
[1767654492557,0.05435355,138.58,138.53,6.497]
[1767654508968,0.05435355,138.58,138.5,1.47070868]
[1767654509669,0.05435355,138.58,138.53,6.4966]
[1767654524375,0.05435355,138.58,138.53,19.97782431]
[1767654529681,0.05435355,138.58,138.52,19.97872431]
[1767654530183,6.4952,138.57,138.52,13.48122431]
[1767654530681,6.4952,138.57,138.51,19.97912431]
[1767654530979,0.31583903,138.55,138.49,142.59249558]
[1767654531179,0.31583903,138.55,138.47,1.47070868]
[1767654531180,0.31583903,138.55,138.47,14.95193299]
[1767654531374,1.78654771,138.55,138.47,1.47070868]
[1767654531687,0.04566822,138.52,138.47,1.47070868]
[1767654532582,0.04566822,138.52,138.49,6.4989]
[1767654533776,0.04566822,138.52,138.48,6.4994]
[1767654534783,0.04566822,138.52,138.46,20.2691079]
[1767654535577,0.04566822,138.52,138.47,6.4997]
[1767654536185,0.04566822,138.52,138.48,6.4993]
[1767654536877,0.04566822,138.52,138.49,6.4989]
[1767654538078,6.80280407,138.56,138.49,6.4989]
[1767654539380,0.0532579,138.54,138.49,6.4989]
[1767654540991,0.0532579,138.54,138.5,6.4985]
[1767654541186,0.0532579,138.54,138.46,121.3825079]
[1767654541187,85.56889823,138.58,138.48,101.1025]
[1767654541397,2.29921266,138.6,138.47,103.40321266]
[1767654541398,0.30889823,138.6,138.51,101.0806]
[1767654542589,0.30889823,138.6,138.54,6.4965]
[1767654545396,2.29921266,138.62,138.56,6.4956]
[1767654545693,0.30889823,138.62,138.54,101.058]
[1767654545896,0.30889823,138.64,138.56,101.0435]
[1767654547594,0.30889823,138.64,138.59,6.494]
[1767654548689,85.28,138.67,138.58,101.0288]
[1767654549096,85.58889823,138.67,138.58,101.0288]
[1767654550601,85.58889823,138.67,138.61,6.4932]
[1767654551498,0.30889823,138.67,138.61,6.4932]
[1767654551901,36.89099437,138.7,138.62,6.4926]
[1767654552605,0.30889823,138.69,138.62,6.4926]
[1767654558508,30.09279614,138.7,138.63,6.4922]
[1767654558700,30.40169437,138.7,138.63,6.4922]
[1767654561412,0.30889823,138.69,138.63,6.4922]
[1767654563410,0.30889823,138.69,138.61,6.493]
[1767654563614,0.30889823,138.69,138.59,188.57521266]
[1767654564017,0.30889823,138.69,138.59,186.276]
[1767654564716,0.30889823,138.69,138.62,6.4928]
[1767654569918,0.30889823,138.69,138.64,0.0485908]
[1767654570916,0.04551805,138.68,138.64,0.0485908]
[1767654572519,0.36038119,138.68,138.64,0.0485908]
[1767654572909,0.36038119,138.68,138.62,6.4928]
[1767654573109,0.36038119,138.68,138.61,6.4933]
[1767654573309,0.31486314,138.67,138.61,6.4933]
[1767654574119,0.04828027,138.65,138.61,6.4933]
[1767654583524,0.04828027,138.65,138.62,6.4927]
[1767654589231,0.04828027,138.65,138.6,6.4934]
[1767654589432,0.04828027,138.65,138.58,114.51002431]
[1767654590128,0.04828027,138.65,138.6,6.4937]
[1767654595231,0.04828027,138.65,138.61,6.4933]
[1767654597039,0.04828027,138.65,138.62,6.4928]
[1767654600942,6.4896,138.69,138.63,6.4923]
[1767654601444,6.79571243,138.69,138.63,6.4923]
[1767654601747,6.79621243,138.68,138.62,6.4928]
[1767654602343,0.30611243,138.67,138.62,6.4928]
[1767654603642,6.4901,138.68,138.62,6.4928]
[1767654605145,6.79621243,138.68,138.62,6.4928]
[1767654606846,0.30611243,138.67,138.6,19.97472431]
[1767654607348,0.30611243,138.67,138.59,13.48122431]
[1767654608143,6.79681243,138.67,138.59,19.97542431]
[1767654608848,0.30611243,138.66,138.59,19.97542431]
[1767654609348,0.30611243,138.66,138.6,6.4937]
[1767654610949,6.4907,138.67,138.6,6.4937]
[1767654612250,6.4907,138.67,138.61,6.4933]
[1767654616462,6.79681243,138.67,138.61,6.4933]
[1767654616753,6.79681243,138.67,138.59,19.97502431]
[1767654616955,6.79681243,138.67,138.59,13.48122431]
[1767654617557,0.30611243,138.66,138.59,13.48122431]
[1767654618357,0.30611243,138.66,138.61,6.4933]
[1767654618761,1.46879498,138.69,138.61,6.4933]
[1767654618762,0.30611243,138.68,138.61,6.4933]
[1767654620560,6.79621243,138.68,138.61,6.4933]
[1767654620859,0.30611243,138.67,138.61,6.4933]
[1767654625062,0.30611243,138.69,138.61,14.95001929]
[1767654625258,30.09279614,138.7,138.61,14.95001929]
[1767654625462,30.09279614,138.7,138.6,101.0118]
[1767654625463,30.09279614,138.7,138.63,1.46879498]
[1767654625854,30.09279614,138.7,138.65,6.4914]
[1767654626359,0.05016556,138.69,138.65,6.4914]
[1767654626562,0.05016556,138.69,138.66,0.04810541]
[1767654640675,1.79565203,138.73,138.66,0.04810541]
[1767654640874,86.99565203,138.73,138.66,0.04810541]
[1767654641066,86.99565203,138.73,138.65,1.46879498]
[1767654641267,0.32685705,138.72,138.65,1.46879498]
[1767654641672,0.32685705,138.72,138.67,6.4905]
[1767654641869,0.32685705,138.72,138.65,1.46879498]
[1767654642076,0.32685705,138.72,138.67,0.04768813]
[1767654642571,86.66879498,138.73,138.67,0.04768813]
[1767654643781,86.66879498,138.73,138.68,6.49]
[1767654647277,85.2,138.73,138.68,6.49]
[1767654648774,85.52685705,138.73,138.68,6.49]
[1767654650781,85.2,138.73,138.69,6.4894]
[1767654651087,0.32685705,138.75,138.67,1.51648311]
[1767654651390,0.32685705,138.75,138.71,6.4886]
[1767654651884,85.50685705,138.76,138.71,6.4886]
[1767654652387,85.50685705,138.76,138.72,6.54241515]
[1767654655292,86.97565203,138.76,138.72,0.05451515]
[1767654655586,0.32093318,138.75,138.72,0.05451515]
[1767654655989,0.37193932,138.75,138.72,0.05451515]
[1767654657085,0.37193932,138.75,138.7,6.4889]
[1767654657593,1.78972816,138.74,138.68,6.4896]
[1767654658094,1.78972816,138.74,138.67,85.18]
[1767654658590,1.78972816,138.74,138.7,0.04998273]
[1767654658787,0.05469255,138.72,138.7,0.04998273]
[1767654664897,0.05469255,138.72,138.66,6.4909]
[1767654664898,0.33248124,138.71,138.66,6.4909]
[1767654665306,0.33248124,138.71,138.63,146.15468605]
[1767654665602,0.33248124,138.7,138.65,6.4914]
[1767654666002,0.33248124,138.7,138.63,152.64668605]
[1767654666300,0.38478036,138.69,138.63,6.492]
[1767654672197,0.38478036,138.69,138.64,6.4919]
[1767654674400,0.38478036,138.69,138.58,13.48122431]
[1767654674607,0.38478036,138.69,138.58,85.18]
[1767654674901,0.33248124,138.68,138.58,85.18]
[1767654675106,0.04882555,138.65,138.58,85.18]
[1767654675701,0.04882555,138.65,138.6,6.4934]
[1767654677010,0.38130679,138.65,138.6,6.4934]
[1767654679409,0.38130679,138.65,138.58,6.4944]
[1767654679609,0.38130679,138.65,138.57,231.71623382]
[1767654680604,0.38130679,138.65,138.59,6.4942]
[1767654682010,6.87280679,138.65,138.57,231.71623382]
[1767654682614,0.33248124,138.64,138.57,85.2]
[1767654683418,0.05242305,138.62,138.57,85.2]
[1767654683819,0.05242305,138.62,138.56,6.4952]
[1767654684020,0.38490429,138.62,138.55,85.2]
[1767654684212,0.38490429,138.62,138.53,22.95388429]
[1767654684711,0.33248124,138.62,138.53,22.95388429]
[1767654684914,6.82628124,138.6,138.53,22.95388429]
[1767654685116,0.05004883,138.59,138.53,22.95388429]
[1767654686022,0.05004883,138.59,138.54,6.4966]
[1767654688528,0.33248124,138.62,138.55,6.4961]
[1767654689220,0.33248124,138.62,138.56,6.4955]
[1767654690918,0.32202478,138.64,138.55,103.34170882]
[1767654691113,0.32202478,138.66,138.57,103.32650882]
[1767654691317,2.29320882,138.69,138.59,2.29320882]
[1767654691318,0.32202478,138.68,138.59,2.29320882]
[1767654691517,6.81202478,138.68,138.61,6.4932]
[1767654692617,85.22,138.69,138.59,103.31230882]
[1767654692814,85.54202478,138.69,138.59,103.31230882]
[1767654693218,0.32202478,138.69,138.59,103.31230882]
[1767654693424,0.32202478,138.69,138.63,6.4923]
[1767654696218,0.32202478,138.71,138.63,6.4923]
[1767654696929,0.32202478,138.71,138.64,6.4918]
[1767654698425,0.32202478,138.73,138.63,2.29320882]
[1767654698622,0.32202478,138.75,138.66,100.9691]
[1767654698827,0.32202478,138.75,138.67,2.29320882]
[1767654699427,31.18212002,138.76,138.7,6.489]
[1767654703637,31.18212002,138.76,138.68,6.4899]
[1767654703828,31.5041448,138.76,138.68,6.4899]
[1767654710339,31.5041448,138.76,138.69,6.4895]
[1767654713146,85.54202478,138.78,138.7,6.4889]
[1767654713642,0.32202478,138.77,138.7,6.4889]
[1767654717548,0.31908184,138.76,138.7,6.4889]
[1767654720246,0.31908184,138.74,138.68,6.4896]
[1767654720750,0.31908184,138.74,138.64,103.27900882]
[1767654720945,0.32455717,138.73,138.63,100.9876]
[1767654721146,0.32455717,138.72,138.62,2.29320882]
[1767654722741,0.32455717,138.72,138.65,6.4913]
[1767654726649,1.79261617,138.72,138.65,6.4913]
[1767654730664,0.32455717,138.71,138.65,6.4913]
[1767654735765,1.79261617,138.71,138.65,6.4913]
[1767654741271,1.79261617,138.71,138.66,6.4909]
[1767654746380,86.95261617,138.73,138.66,6.4909]
[1767654747278,0.32455717,138.72,138.66,6.4909]
[1767654750578,85.16,138.73,138.65,1.468059]
[1767654750886,86.97261617,138.76,138.67,14.94928331]
[1767654751185,86.97261617,138.76,138.68,13.48122431]
[1767654751579,86.97261617,138.76,138.7,6.4891]
[1767654756485,0.33431649,138.75,138.7,6.4891]
[1767654757590,1.80237549,138.74,138.67,14.94928331]
[1767654757978,1.80237549,138.74,138.67,13.48122431]
[1767654758183,1.80237549,138.74,138.66,114.45252431]
[1767654758584,1.80237549,138.74,138.69,6.4895]
[1767654759694,0.33431649,138.71,138.64,13.48122431]
[1767654759885,1.80237549,138.7,138.62,13.48122431]
[1767654760086,0.33431649,138.7,138.62,13.48122431]
[1767654760290,1.80237549,138.7,138.62,13.48122431]
[1767654760593,1.80237549,138.7,138.61,14.94928331]
[1767654760594,0.33431649,138.69,138.61,14.94928331]
[1767654761186,0.33431649,138.69,138.62,6.4926]
[1767654763697,1.80237549,138.69,138.62,6.4926]
[1767654764893,1.80237549,138.67,138.61,13.48122431]
[1767654765090,1.80237549,138.67,138.6,19.97462431]
[1767654765490,1.80237549,138.67,138.6,6.4934]
[1767654765691,8.29297549,138.67,138.6,6.4934]
[1767654765893,0.33431649,138.66,138.58,21.44358331]
[1767654766087,1.468059,138.67,138.58,21.44358331]
[1767654766088,1.80237549,138.65,138.58,6.4943]
[1767654767693,0.33431649,138.64,138.56,32.3124355]
[1767654767995,0.33431649,138.62,138.54,13.48122431]
[1767654768294,1.468059,138.63,138.55,6.496]
[1767654768295,1.80237549,138.63,138.55,6.496]
[1767654768691,0.33431649,138.62,138.55,6.496]
[1767654776398,1.468059,138.63,138.56,6.4956]
[1767654776594,1.468059,138.64,138.55,1.468059]
[1767654777498,1.468059,138.64,138.57,6.4951]
[1767654780302,8.29235166,138.65,138.58,6.4946]
[1767654780510,86.688059,138.66,138.57,1.468059]
[1767654781107,8.26523747,138.69,138.59,1.468059]
[1767654781307,8.26523747,138.69,138.61,1.468059]
[1767654782806,8.26523747,138.69,138.62,6.4928]
[1767654784698,6.79717847,138.69,138.62,6.4928]
[1767654785414,0.30727847,138.69,138.63,6.4923]
[1767654787101,0.30727847,138.68,138.59,1.468059]
[1767654787509,0.30727847,138.66,138.59,7.962259]
[1767654788409,0.30727847,138.66,138.6,6.4937]
[1767654789617,6.4905,138.67,138.6,6.4937]
[1767654792309,6.4905,138.67,138.58,6.4943]
[1767654792509,6.4905,138.67,138.57,2.29526999]
[1767654793320,6.79777847,138.67,138.57,2.29526999]
[1767654793620,6.79777847,138.67,138.59,6.4941]
[1767654794614,6.79827847,138.66,138.59,6.4941]
[1767654802525,0.30727847,138.65,138.59,6.4941]
[1767654807731,0.30727847,138.64,138.56,13.48122431]
[1767654808023,0.30727847,138.63,138.55,13.48122431]
[1767654808227,0.30727847,138.62,138.55,6.4961]
[1767654811034,0.31326651,138.61,138.54,19.97782431]
[1767654811339,0.31326651,138.61,138.54,6.4966]
[1767654811521,6.80686651,138.61,138.54,6.4966]
[1767654811721,0.31326651,138.6,138.54,6.4966]
[1767654814134,0.31326651,138.59,138.52,19.97832431]
[1767654814532,0.31326651,138.59,138.52,6.4971]
[1767654815629,6.80746651,138.59,138.52,6.4971]
[1767654816031,0.31326651,138.58,138.5,174.72006631]
[1767654817636,6.80806651,138.58,138.5,174.72006631]
[1767654817823,85.55326651,138.6,138.5,168.22196631]
[1767654818033,2.6085365,138.62,138.5,270.56255727]
[1767654818226,2.6085365,138.62,138.51,2.29526999]
[1767654818427,0.31326651,138.62,138.51,188.61266999]
[1767654818627,2.6085365,138.64,138.53,103.35626999]
[1767654818827,0.31326651,138.64,138.53,116.8011253]
[1767654819027,0.31326651,138.63,138.53,15.7401253]
[1767654820634,6.80576651,138.63,138.55,6.4957]
[1767654825639,6.80576651,138.63,138.56,6.4956]
[1767654828845,0.31326651,138.63,138.56,6.4956]
[1767654829145,0.31326651,138.63,138.55,6.496]
[1767654829347,0.31326651,138.63,138.53,15.7401253]
[1767654830550,6.80566651,138.63,138.56,6.4956]
[1767654831541,0.31326651,138.61,138.54,19.94115531]
[1767654831740,0.31326651,138.61,138.54,6.4963]
[1767654831949,0.31326651,138.61,138.52,15.7401253]
[1767654832145,0.31326651,138.61,138.55,6.4961]
[1767654836653,6.80676651,138.61,138.55,6.4961]
[1767654839350,6.80676651,138.61,138.54,6.4966]
[1767654843548,0.33744622,138.59,138.52,19.94205531]
[1767654843752,0.33744622,138.59,138.52,6.4972]
[1767654844743,6.83184622,138.59,138.52,6.4972]
[1767654845143,0.33744622,138.58,138.5,189.42091258]
[1767654845341,0.33744622,138.58,138.5,182.92291258]
[1767654846550,0.33744622,138.58,138.51,6.4979]
[1767654847351,6.83224622,138.58,138.5,181.66682162]
[1767654847539,0.33744622,138.57,138.5,181.66682162]
[1767654847946,0.33744622,138.57,138.49,13.44485531]
[1767654847947,0.33744622,138.56,138.49,13.44485531]
[1767654848147,0.33744622,138.56,138.47,13.44485531]
[1767654848544,1.80896545,138.56,138.47,14.91637454]
[1767654849445,1.80896545,138.56,138.47,13.44485531]
[1767654849645,0.33744622,138.55,138.48,6.4994]
[1767654861158,85.59744622,138.59,138.49,1.47151923]
[1767654861358,87.06896545,138.59,138.49,1.47151923]
[1767654861664,87.06896545,138.59,138.48,13.44485531]
[1767654861665,92.09214622,138.59,138.52,6.4975]
[1767654862067,85.59744622,138.59,138.51,1.47151923]
[1767654862761,85.59744622,138.59,138.53,6.497]
[1767654866970,0.33744622,138.58,138.52,6.4975]
[1767654873076,91.7544,138.59,138.52,6.4975]
[1767654873379,85.26,138.59,138.53,6.4966]
[1767654873880,85.58026531,138.59,138.53,6.4966]
[1767654877282,87.05178454,138.59,138.53,6.4966]